bitfinex/quotes_SOLUSD_20250829
["timestamp","ask_amount","ask_price","bid_price","bid_amount"]
[1756456374867,59.86521574,208.56,208.55,0.2]
[1756456377474,19.36521574,208.56,208.55,0.2]
[1756456377678,59.88521574,208.56,208.55,0.2]
[1756456378173,0.69,208.64,208.55,5.66501318]
[1756456378376,19.36521574,208.58,208.55,5.66501318]
[1756456378566,19.36521574,208.58,208.56,0.67]
[1756456378886,19.36521574,208.58,208.57,0.67]
[1756456379582,59.86521574,208.6,208.57,5.46455338]
[1756456379757,0.69,208.68,208.58,0.67]
[1756456380080,19.36521574,208.64,208.58,20.03521574]
[1756456380283,19.36521574,208.64,208.59,0.67]
[1756456380597,19.36521574,208.64,208.6,0.7]
[1756456380761,19.36521574,208.64,208.61,4.79363405]
[1756456380961,59.86521574,208.65,208.61,5.49363405]
[1756456381152,20.0,208.75,208.62,0.7]
[1756456381153,212.4,208.75,208.62,0.7]
[1756456381372,19.36521574,208.68,208.62,20.06521574]
[1756456381566,19.36521574,208.67,208.63,0.7]
[1756456381978,19.36521574,208.67,208.64,0.7]
[1756456382497,59.86521574,208.66,208.62,0.7]
[1756456382659,19.36521574,208.66,208.63,4.79317451]
[1756456382861,19.36521574,208.66,208.64,0.7]
[1756456383074,19.36521574,208.71,208.65,20.06521574]
[1756456383268,59.86521574,208.71,208.65,19.36521574]
[1756456383585,19.36521574,208.72,208.66,20.06521574]
[1756456383789,59.86521574,208.73,208.67,20.06521574]
[1756456383990,59.86521574,208.73,208.68,0.7]
[1756456384385,40.5,208.73,208.69,0.7]
[1756456384684,59.86521574,208.76,208.71,4.79133726]
[1756456384886,0.06,208.83,208.72,0.7]
[1756456385088,19.36521574,208.8,208.74,19.36521574]
[1756456385278,40.5,208.82,208.75,0.7]
[1756456385478,19.36521574,208.8,208.75,0.7]
[1756456385690,19.36521574,208.77,208.71,30.79133726]
[1756456385866,19.36521574,208.77,208.72,0.7]
[1756456386069,0.06,208.75,208.73,0.7]
[1756456386377,0.06,208.75,208.74,0.7]
[1756456386787,0.06,208.75,208.67,13.59559401]
[1756456386988,19.42521574,208.75,208.72,0.7]
[1756456387189,0.06,208.75,208.73,0.7]
[1756456388384,0.06,208.75,208.74,20.06521574]
[1756456388576,0.06,208.75,208.74,0.7]
[1756456388780,0.06,208.75,208.74,20.06521574]
[1756456388993,0.06,208.75,208.74,24.85586439]
[1756456389172,0.06,208.77,208.74,24.85586439]
[1756456389498,0.06,208.77,208.76,19.36521574]
[1756456389805,0.06,208.77,208.76,26.0]
[1756456389977,0.06,208.77,208.76,46.06521574]
[1756456391292,0.06,208.77,208.76,50.85540543]
[1756456391668,0.06,208.77,208.76,31.49018969]
[1756456392068,0.06,208.77,208.76,50.85540543]
[1756456393193,0.06,208.77,208.76,31.49018969]
[1756456393396,20.10521574,208.77,208.67,4.79225571]
[1756456393582,19.36521574,208.73,208.67,4.79225571]
[1756456393782,0.06,208.77,208.68,0.7]
[1756456393980,19.36521574,208.75,208.68,20.06521574]
[1756456394182,19.36521574,208.74,208.68,20.06521574]
[1756456394381,19.36521574,208.72,208.67,4.79225571]
[1756456394676,19.36521574,208.73,208.68,0.7]
[1756456395192,0.68,208.75,208.68,0.7]
[1756456395396,0.06,208.77,208.71,19.36521574]
[1756456395574,0.06,208.77,208.72,19.36521574]
[1756456395771,0.06,208.77,208.73,19.36521574]
[1756456396182,0.06,208.77,208.74,20.06521574]
[1756456396384,19.36521574,208.75,208.7,0.7]
[1756456396886,0.06,208.77,208.71,0.7]
[1756456397202,19.36521574,208.72,208.64,0.7]
[1756456397387,19.36521574,208.69,208.64,0.7]
[1756456397594,19.36521574,208.68,208.64,0.7]
[1756456397794,45.23021676,208.76,208.66,19.36521574]
[1756456397992,19.36521574,208.72,208.66,19.36521574]
[1756456398587,71.91021676,208.76,208.65,20.06521574]
[1756456398588,19.36521574,208.71,208.65,20.06521574]
[1756456398789,19.36521574,208.72,208.66,19.36521574]
[1756456399208,19.36521574,208.73,208.65,0.7]
[1756456399387,19.36521574,208.72,208.66,24.15770112]
[1756456399586,19.36521574,208.71,208.66,4.79248538]
[1756456399788,19.36521574,208.71,208.66,5.49248538]
[1756456400296,19.36521574,208.7,208.66,5.49248538]
[1756456400495,19.36521574,208.72,208.66,24.85770112]
[1756456401087,19.36521574,208.7,208.66,5.49248538]
[1756456401287,19.36521574,208.71,208.66,5.49248538]
[1756456402098,19.36521574,208.72,208.67,0.7]
[1756456402499,19.36521574,208.71,208.67,0.7]
[1756456402693,19.36521574,208.7,208.66,4.79248538]
[1756456403607,19.36521574,208.7,208.62,26.0]
[1756456403809,19.36521574,208.66,208.61,0.7]
[1756456404013,19.36521574,208.69,208.63,19.36521574]
[1756456404188,59.78521574,208.7,208.67,0.03]
[1756456404506,19.36521574,208.69,208.67,0.03]
[1756456404821,19.36521574,208.68,208.67,0.03]
[1756456405795,19.36521574,208.69,208.67,0.03]
[1756456406116,19.36521574,208.71,208.67,0.73]
[1756456406316,40.42,208.72,208.68,19.36521574]
[1756456406618,0.74,208.75,208.67,0.73]
[1756456406619,40.48,208.75,208.7,19.36521574]
[1756456406816,40.48,208.75,208.7,20.06521574]
[1756456407714,40.48,208.75,208.71,4.79133726]
[1756456407909,0.06,208.75,208.73,19.36521574]
[1756456408131,0.06,208.75,208.74,0.7]
[1756456408811,0.06,208.75,208.73,19.36521574]
[1756456409120,0.06,208.75,208.73,20.06521574]
[1756456410422,0.06,208.75,208.74,19.36521574]
[1756456412422,0.06,208.75,208.74,24.15586439]
[1756456412615,0.06,208.75,208.74,24.85586439]
[1756456415931,0.06,208.75,208.74,38.4514584]
[1756456416924,0.06,208.75,208.74,24.85586439]
[1756456420002,0.06,208.75,208.74,38.4514584]
[1756456420412,0.06,208.77,208.76,39.59559401]
[1756456420619,0.06,208.83,208.8,26.0]
[1756456420838,0.06,208.83,208.82,19.36521574]
[1756456422037,0.73,208.83,208.77,78.5]
[1756456422228,0.73,208.83,208.8,19.36521574]
[1756456422537,0.73,208.83,208.77,4.78991742]
[1756456422839,0.73,208.83,208.79,19.36521574]
[1756456423040,0.67,208.82,208.79,19.36521574]
[1756456423436,0.06,208.83,208.79,19.36521574]
[1756456423628,0.67,208.82,208.75,41.04]
[1756456423829,0.67,208.82,208.78,19.36521574]
[1756456424136,0.67,208.82,208.75,0.7]
[1756456424137,0.67,208.81,208.75,19.36521574]
[1756456424336,20.03521574,208.81,208.75,19.36521574]
[1756456424533,0.67,208.81,208.76,19.36521574]
[1756456424867,0.67,208.81,208.77,19.36521574]
[1756456425044,0.67,208.8,208.77,19.36521574]
[1756456425344,0.67,208.8,208.76,19.36521574]
[1756456425543,24.82407148,208.82,208.76,19.36521574]
[1756456426437,24.82407148,208.82,208.75,4.79028017]
[1756456426635,24.82407148,208.82,208.76,19.36521574]
[1756456427146,0.67,208.82,208.77,19.36521574]
[1756456427449,0.67,208.81,208.76,4.79000343]
[1756456427655,0.06,208.83,208.8,19.36521574]
[1756456427860,0.06,208.83,208.82,19.36521574]
[1756456428228,0.06,208.83,208.81,19.36521574]
[1756456428627,0.06,208.83,208.82,19.36521574]
[1756456428957,0.06,208.83,208.82,24.15402907]
[1756456429160,0.06,208.83,208.82,24.85402907]
[1756456430534,0.06,208.83,208.82,24.15402907]
[1756456430736,0.06,208.83,208.81,4.78904267]
[1756456431041,0.06,208.83,208.82,0.7]
[1756456431232,0.06,208.83,208.82,20.06521574]
[1756456432830,0.06,208.83,208.82,24.85402907]
[1756456433751,0.06,208.83,208.82,5.48881333]
[1756456434048,0.06,208.83,208.8,14.29559401]
[1756456434221,0.06,208.83,208.82,19.36521574]
[1756456434819,0.06,208.83,208.81,19.36521574]
[1756456435038,0.06,208.83,208.8,19.36521574]
[1756456435454,0.06,208.83,208.82,19.36521574]
[1756456435624,0.06,208.83,208.8,0.7]
[1756456435826,0.06,208.83,208.81,19.36521574]
[1756456436242,0.06,208.83,208.77,0.7]
[1756456436552,0.06,208.83,208.8,19.36521574]
[1756456437252,0.67,208.82,208.77,4.789935]
[1756456437445,20.03521574,208.82,208.77,4.789935]
[1756456437752,0.67,208.82,208.78,19.36521574]
[1756456437944,0.06,208.83,208.78,19.36521574]
[1756456438147,0.73,208.83,208.78,24.15481883]
[1756456438334,0.06,208.83,208.8,19.36521574]
[1756456438535,19.36521574,208.81,208.73,0.73]
[1756456438743,20.03521574,208.81,208.75,19.36521574]
[1756456438955,0.67,208.81,208.76,19.36521574]
[1756456439540,19.36521574,208.82,208.77,4.78996024]
[1756456439746,20.03521574,208.82,208.77,4.78996024]
[1756456440061,0.06,208.83,208.79,19.36521574]
[1756456440247,0.06,208.83,208.78,0.7]
[1756456440558,0.06,208.83,208.8,19.36521574]
[1756456441342,0.06,208.83,208.79,20.06521574]
[1756456441553,0.71,208.82,208.75,4.79025749]
[1756456441865,0.06,208.83,208.81,19.36521574]
[1756456442165,0.06,208.83,208.82,20.06521574]
[1756456442668,0.06,208.83,208.82,19.36521574]
[1756456443136,0.06,208.83,208.82,20.06521574]
[1756456443752,0.06,208.83,208.82,24.85402907]
[1756456445064,1e-08,208.83,208.82,38.44962308]
[1756456445863,0.06,208.86,208.85,39.59559401]
[1756456446043,1e-08,208.86,208.85,58.96080975]
[1756456446244,1e-08,208.86,208.85,59.66080975]
[1756456446663,1e-08,208.86,208.85,99.90080975]
[1756456446860,1e-08,208.86,208.85,104.68893519]
[1756456447043,0.06,208.88,208.86,13.59559401]
[1756456447250,0.06,208.88,208.87,58.96080975]
[1756456447450,0.06,208.88,208.87,59.66080975]
[1756456448163,0.06,208.88,208.87,20.06521574]
[1756456448376,0.06,208.88,208.87,19.36521574]
[1756456448551,0.06,208.88,208.87,45.36521574]
[1756456448754,0.06,208.88,208.87,50.1528827]
[1756456448974,0.06,208.88,208.87,50.8528827]
[1756456449449,0.06,208.88,208.87,24.8528827]
[1756456449651,0.06,208.88,208.87,19.36521574]
[1756456449862,0.06,208.88,208.87,24.1528827]
[1756456450071,0.06,208.88,208.87,24.8528827]
[1756456451072,0.06,208.88,208.86,19.36521574]
[1756456451786,0.06,208.88,208.87,19.36521574]
[1756456451955,0.06,208.88,208.87,33.66080975]
[1756456452270,0.06,208.88,208.87,60.28521574]
[1756456453054,0.06,208.88,208.87,65.0728827]
[1756456453455,0.06,208.88,208.87,78.66847671]
[1756456454484,0.71,209.0,208.88,13.59559401]
[1756456454680,0.71,209.0,208.98,19.36521574]
[1756456455281,0.71,208.99,208.97,19.36521574]
[1756456455466,0.71,208.98,208.93,44.98625577]
[1756456455865,0.71,208.98,208.95,19.36521574]
[1756456456374,19.36521574,208.99,208.91,4.78660692]
[1756456456677,19.36521574,208.96,208.9,19.36521574]
[1756456456878,20.07521574,208.96,208.9,19.36521574]
[1756456457086,0.71,208.96,208.91,24.15188442]
[1756456457284,3.410148,209.06,209.0,25.10821987]
[1756456457475,10.0,209.12,209.01,7.03994018]
[1756456457665,10.0,209.12,208.92,80.25436305]
[1756456457666,28.5772444,209.09,208.95,20.0]
[1756456457858,28.5772444,209.09,209.04,26.0]
[1756456458059,10.71,209.12,209.04,26.0]
[1756456458060,10.71,209.12,209.08,19.36521574]
[1756456458274,10.71,209.12,209.11,19.36521574]
[1756456458485,10.0,209.12,209.11,22.92981526]
[1756456458660,11.4,209.25,209.11,22.92981526]
[1756456458983,0.71,209.24,209.21,19.36521574]
[1756456459198,11.4,209.25,209.13,40.32]
[1756456459199,0.71,209.23,209.13,40.32]
[1756456459487,0.71,209.23,209.22,19.36521574]
[1756456460558,0.71,209.23,209.17,40.32]
[1756456460762,0.71,209.23,209.22,19.36521574]
[1756456461309,0.1,209.33,209.22,19.36521574]
[1756456461310,0.1,209.33,209.22,24.14487351]
[1756456461583,0.1,209.33,209.31,19.36521574]
[1756456461584,0.71,209.32,209.31,19.36521574]
[1756456462880,0.1,209.33,209.31,19.36521574]
[1756456463062,0.71,209.32,209.24,40.28]
[1756456463263,0.71,209.32,209.25,19.9490815]
[1756456463488,0.71,209.32,209.26,3.21693977]
[1756456463686,0.71,209.32,209.25,36.09161956]
[1756456463870,0.1,209.33,209.26,3.21685987]
[1756456464185,0.1,209.33,209.32,19.36521574]
[1756456465074,0.1,209.33,209.26,26.0]
[1756456465387,0.81,209.33,209.31,19.36521574]
[1756456465766,0.71,209.32,209.31,19.36521574]
[1756456467068,0.71,209.32,209.27,4.77851579]
[1756456467388,20.07521574,209.31,209.25,19.36521574]
[1756456467686,0.71,209.3,209.26,19.36521574]
[1756456467892,0.71,209.29,209.26,19.36521574]
[1756456468085,0.71,209.28,209.26,19.36521574]
[1756456468289,0.71,209.27,209.19,40.26]
[1756456468593,0.71,209.27,209.25,19.36521574]
[1756456468779,0.71,209.31,209.26,19.36521574]
[1756456469092,0.1,209.33,209.3,19.36521574]
[1756456469288,0.1,209.33,209.32,19.36521574]
[1756456470288,0.81,209.33,209.31,4.77760259]
[1756456470505,0.66,209.32,209.31,4.77760259]
[1756456472469,0.66,209.32,209.31,24.14281833]
[1756456472770,0.66,209.32,209.31,4.77760259]
[1756456473590,20.02521574,209.32,209.27,4.77851579]
[1756456473776,0.66,209.31,209.27,4.77851579]
[1756456473978,0.66,209.3,209.27,4.77851579]
[1756456474293,0.66,209.3,209.29,19.36521574]
[1756456474490,0.66,209.3,209.28,19.36521574]
[1756456474685,0.66,209.29,209.27,24.14373153]
[1756456474990,0.66,209.29,209.21,23.89878153]
[1756456474991,20.02521574,209.28,209.17,4.7808003]
[1756456475291,0.66,209.27,209.24,19.36521574]
[1756456475592,59.52521574,209.3,209.24,19.36521574]
[1756456475593,0.66,209.26,209.25,4.77897252]
[1756456475972,0.66,209.26,209.25,24.14418826]
[1756456476173,0.66,209.26,209.25,4.77897252]
[1756456477587,59.50521574,209.31,209.25,4.77897252]
[1756456477588,0.66,209.28,209.25,24.14418826]
[1756456477894,0.66,209.27,209.19,11.95084919]
[1756456478095,19.36521574,209.31,209.25,19.36521574]
[1756456478285,0.66,209.3,209.29,19.36521574]
[1756456479397,0.1,209.33,209.29,19.36521574]
[1756456479579,0.1,209.33,209.32,19.36521574]
[1756456479904,34.7,209.43,209.32,19.36521574]
[1756456479905,0.66,209.42,209.32,24.14259009]
[1756456480091,0.66,209.42,209.4,19.36521574]
[1756456480295,0.66,209.42,209.32,16.72081023]
[1756456480485,0.66,209.42,209.38,19.36521574]
[1756456480685,0.66,209.41,209.38,19.36521574]
[1756456480883,0.66,209.4,209.38,19.36521574]
[1756456481292,34.7,209.43,209.38,19.36521574]
[1756456481596,26.0,209.48,209.36,19.36521574]
[1756456481778,19.36521574,209.43,209.37,19.36521574]
[1756456481976,0.66,209.42,209.37,19.36521574]
[1756456482195,0.66,209.41,209.39,19.36521574]
[1756456482373,0.66,209.4,209.36,4.77623544]
[1756456482578,66.12,209.45,209.39,19.36521574]
[1756456482789,85.48521574,209.45,209.36,16.71738943]
[1756456483107,0.66,209.44,209.39,19.36521574]
[1756456483299,0.66,209.43,209.4,19.36521574]
[1756456483506,0.66,209.42,209.36,16.71738943]
[1756456483684,0.66,209.42,209.4,19.36521574]
[1756456484004,0.66,209.41,209.39,19.36521574]
[1756456484200,11.9320493,209.52,209.36,4.77623544]
[1756456484201,0.66,209.44,209.4,19.36521574]
[1756456484410,40.12,209.47,209.43,19.36521574]
[1756456484696,40.12,209.47,209.42,19.36521574]
[1756456484920,40.12,209.47,209.41,19.36521574]
[1756456485105,0.66,209.46,209.41,19.36521574]
[1756456485278,0.66,209.45,209.41,19.36521574]
[1756456485479,0.66,209.44,209.42,19.36521574]
[1756456485892,0.66,209.43,209.42,19.36521574]
[1756456487290,40.78,209.47,209.42,24.1402566]
[1756456487606,40.78,209.47,209.43,19.36521574]
[1756456487607,0.66,209.46,209.43,19.36521574]
[1756456487804,0.66,209.45,209.36,11.94115399]
[1756456488101,0.66,209.45,209.42,19.36521574]
[1756456488304,0.66,209.44,209.42,19.36521574]
[1756456488512,0.66,209.44,209.43,19.36521574]
[1756456488883,0.66,209.44,209.37,11.94058365]
[1756456489118,0.66,209.44,209.42,19.36521574]
[1756456489286,0.66,209.47,209.43,19.36521574]
[1756456489496,0.66,209.46,209.43,19.36521574]
[1756456489739,0.66,209.45,209.43,19.36521574]
[1756456489894,0.66,209.44,209.42,19.36521574]
[1756456490204,0.66,209.44,209.38,4.77600534]
[1756456490205,19.36521574,209.46,209.4,19.36521574]
[1756456490408,0.66,209.43,209.36,4.77624948]
[1756456490602,19.36521574,209.39,209.34,4.77691793]
[1756456490797,0.66,209.38,209.34,4.77691793]
[1756456490997,0.66,209.37,209.34,4.77691793]
[1756456491198,0.66,209.36,209.31,19.36521574]
[1756456491509,19.36521574,209.34,209.26,16.72506959]
[1756456491706,20.02521574,209.33,209.27,19.36521574]
[1756456491908,19.36521574,209.32,209.26,24.14395988]
[1756456492299,20.02521574,209.33,209.27,19.36521574]
[1756456492495,40.1,209.37,209.25,0.03]
[1756456492496,19.36521574,209.31,209.25,4.80892763]
[1756456492701,5.43749499,209.32,209.25,0.03]
[1756456493112,19.36521574,209.29,209.25,0.03]
[1756456493505,0.66,209.28,209.25,0.03]
[1756456494023,0.66,209.27,209.25,0.03]
[1756456494202,20.02521574,209.3,209.25,4.80889572]
[1756456494513,20.02521574,209.29,209.25,0.03]
[1756456494889,0.66,209.28,209.25,0.03]
[1756456495086,20.02521574,209.28,209.25,0.03]
[1756456495304,0.66,209.3,209.25,0.03]
[1756456495514,19.36521574,209.27,209.25,0.03]
[1756456495996,44.87766636,209.31,209.25,0.03]
[1756456495997,20.02521574,209.26,209.25,0.03]
[1756456496194,0.66,209.26,209.25,0.03]
[1756456496397,20.02521574,209.26,209.25,0.03]
[1756456496997,24.80395988,209.26,209.25,0.03]
[1756456497198,20.02521574,209.26,209.25,0.03]
[1756456497400,24.80395988,209.26,209.25,0.03]
[1756456497607,20.02521574,209.26,209.25,0.03]
[1756456498033,24.80395988,209.26,209.25,0.03]
[1756456499010,20.02521574,209.26,209.25,0.03]
[1756456499207,24.80395988,209.26,209.25,0.03]
[1756456499399,64.90395988,209.26,209.25,0.03]
[1756456500225,26.0,209.23,209.22,0.03]
[1756456500432,19.36521574,209.21,209.05,4.7835446]
[1756456500722,19.36521574,209.09,209.04,4.98376513]
[1756456501033,0.69,209.09,209.04,24.34898087]
[1756456501210,19.36521574,209.08,209.04,0.2]
[1756456501404,19.36521574,209.09,209.04,4.98372382]
[1756456501599,19.36521574,209.07,209.04,0.2]
[1756456501800,19.36521574,209.06,209.04,0.2]
[1756456501996,0.69,209.08,209.04,0.2]
[1756456502225,40.1,209.12,209.04,0.2]
[1756456502226,19.36521574,209.06,209.04,0.2]
[1756456502408,0.69,209.07,209.04,0.2]
[1756456502409,20.05521574,209.07,209.04,0.2]
[1756456502814,0.69,209.09,209.04,4.98371744]
[1756456503002,19.36521574,209.05,209.04,0.2]
[1756456503205,19.36521574,209.05,208.98,0.03]
[1756456503206,20.05521574,209.05,208.98,0.03]
[1756456503518,19.36521574,209.04,208.98,19.39521574]
[1756456503827,19.36521574,209.03,208.98,4.81511406]
[1756456504208,20.05521574,209.03,208.98,4.81511406]
[1756456504633,20.05521574,209.02,208.98,0.03]
[1756456504931,19.36521574,208.99,208.98,0.03]
[1756456505322,20.05521574,208.99,208.98,0.03]
[1756456505827,0.69,209.04,208.98,0.03]
[1756456506026,20.05521574,209.04,208.98,19.39521574]
[1756456506331,60.17521574,209.04,208.98,19.39521574]
[1756456506508,19.36521574,209.03,208.98,0.03]
[1756456506831,19.36521574,209.02,208.98,0.03]
[1756456507137,19.36521574,209.02,208.98,19.39521574]
[1756456507138,0.69,209.02,208.98,19.39521574]
[1756456507335,40.81,209.05,208.98,19.39521574]
[1756456507538,19.36521574,209.04,208.98,19.39521574]
[1756456507738,60.17521574,209.05,208.99,19.36521574]
[1756456508035,40.81,209.05,208.99,19.36521574]
[1756456508332,60.17521574,209.05,208.99,19.36521574]
[1756456508524,0.69,209.05,209.0,19.36521574]
[1756456508732,0.69,209.04,209.0,24.14979371]
[1756456509308,0.69,209.04,209.0,19.36521574]
[1756456509513,19.36521574,209.04,208.98,24.18020495]
[1756456509837,19.36521574,208.99,208.98,0.03]
[1756456510020,0.69,209.03,208.98,0.03]
[1756456510227,20.05521574,208.99,208.98,0.03]
[1756456511154,20.05521574,208.99,208.95,0.03]
[1756456511326,0.69,208.98,208.95,0.03]
[1756456511518,19.36521574,208.97,208.95,0.03]
[1756456511718,20.05521574,208.97,208.95,0.03]
[1756456512023,0.69,208.96,208.95,0.03]
[1756456512522,40.12,209.01,208.95,19.39521574]
[1756456512834,0.69,209.02,208.98,24.15023931]
[1756456513040,60.17521574,209.06,209.0,19.36521574]
[1756456513221,0.69,209.06,209.02,19.36521574]
[1756456513425,15.04,209.09,209.04,19.36521574]
[1756456513627,15.04,209.09,209.0,0.33]
[1756456513628,19.36521574,209.09,209.03,19.36521574]
[1756456513822,19.36521574,209.06,208.99,19.36521574]
[1756456514028,19.36521574,209.07,209.01,19.36521574]
[1756456514228,20.05521574,209.08,209.01,19.36521574]
[1756456514430,19.36521574,209.05,208.99,19.36521574]
[1756456514741,20.05521574,209.05,208.99,45.36521574]
[1756456514961,0.69,209.05,209.0,19.36521574]
[1756456515639,0.69,209.05,208.99,4.78485165]
[1756456515640,0.69,209.05,209.01,19.36521574]
[1756456515814,0.69,209.04,208.99,19.36521574]
[1756456516014,0.69,209.03,208.99,19.36521574]
[1756456516218,0.69,209.03,208.99,24.15012506]
[1756456516430,0.69,209.03,209.0,19.36521574]
[1756456517840,0.69,209.03,208.95,0.03]
[1756456517841,19.36521574,209.01,208.95,0.03]
[1756456518147,19.36521574,208.98,208.95,0.03]
[1756456518342,40.81,209.0,208.95,0.03]
[1756456518540,19.36521574,208.98,208.95,0.03]
[1756456518847,24.15045361,208.98,208.95,0.03]
[1756456519145,0.69,208.97,208.95,0.03]
[1756456519842,19.36521574,208.97,208.95,0.03]
[1756456520031,20.05521574,208.96,208.95,0.03]
[1756456520217,0.69,209.0,208.95,0.03]
[1756456520420,59.48521574,208.99,208.95,0.03]
[1756456520723,60.17521574,208.99,208.95,0.03]
[1756456521033,0.69,208.98,208.95,0.03]
[1756456521233,19.36521574,208.97,208.95,0.03]
[1756456521431,19.36521574,208.96,208.95,0.03]
[1756456521627,20.05521574,208.96,208.95,0.03]
[1756456522243,40.14,208.99,208.95,0.03]
[1756456522649,40.83,208.99,208.95,0.03]
[1756456522944,26.0,209.0,208.98,4.7851469]
[1756456523333,40.12,209.01,208.98,4.7851469]
[1756456523543,40.81,209.01,208.98,4.7851469]
[1756456523743,0.69,209.06,209.0,19.36521574]
[1756456524050,40.83,209.06,209.01,19.36521574]
[1756456524224,0.69,209.05,209.01,19.36521574]
[1756456525030,0.69,209.04,208.99,19.36521574]
[1756456525227,0.69,209.06,209.03,19.36521574]
[1756456525432,40.12,209.06,209.03,19.36521574]
[1756456525942,40.12,209.06,208.99,26.0]
[1756456526136,40.12,209.06,209.01,19.36521574]
[1756456526337,0.69,209.05,209.01,19.36521574]
[1756456526539,0.69,209.04,209.0,19.36521574]
[1756456526740,0.69,209.04,208.99,19.36521574]
[1756456527552,0.69,209.03,208.95,0.03]
[1756456527742,19.36521574,209.01,208.95,19.39521574]
[1756456528048,59.48521574,209.02,208.96,19.36521574]
[1756456528249,40.12,209.02,208.98,19.36521574]
[1756456529026,0.69,209.07,209.01,19.36521574]
[1756456529226,40.12,209.06,209.02,19.36521574]
[1756456529451,59.48521574,209.06,209.0,19.36521574]
[1756456529658,19.36521574,209.05,208.99,19.36521574]
[1756456529835,19.36521574,209.05,208.95,11.99458482]
[1756456529836,19.36521574,209.03,208.97,19.36521574]
[1756456530035,19.36521574,209.01,208.95,19.39521574]
[1756456530256,19.36521574,209.02,208.96,24.15082064]
[1756456530456,20.05521574,209.03,208.96,24.15082064]
[1756456531341,19.36521574,209.04,208.98,19.36521574]
[1756456531739,19.36521574,209.02,208.96,19.36521574]
[1756456531952,0.72,209.03,208.95,0.03]
[1756456532151,19.36521574,209.01,208.95,0.03]
[1756456532457,19.36521574,209.0,208.95,0.03]
[1756456532840,19.36521574,208.99,208.95,0.03]
[1756456533044,26.0,209.03,208.95,0.03]
[1756456533045,19.36521574,208.97,208.95,0.03]
[1756456533652,40.84,209.01,208.95,0.03]
[1756456533861,19.36521574,208.99,208.95,0.03]
[1756456534048,40.84,209.01,208.95,0.03]
[1756456534238,19.36521574,208.98,208.95,0.03]
[1756456535159,19.36521574,208.99,208.95,0.03]
[1756456535354,40.84,209.01,208.95,0.03]
[1756456535654,19.36521574,209.0,208.95,0.03]
[1756456536134,20.08521574,209.0,208.95,0.03]
[1756456536334,19.36521574,208.98,208.95,0.03]
[1756456536862,20.08521574,208.97,208.95,0.03]
[1756456537155,0.72,209.02,208.96,24.15082064]
[1756456537358,0.72,209.05,208.97,19.36521574]
[1756456537653,19.36521574,209.01,208.96,4.7856049]
[1756456537865,19.36521574,209.02,208.96,24.15082064]
[1756456538044,19.36521574,209.02,208.96,4.7856049]
[1756456539461,19.36521574,208.97,208.95,0.03]
[1756456539635,19.36521574,208.96,208.95,0.03]
[1756456539837,60.18521574,208.96,208.93,0.03]
[1756456540141,45.36521574,208.94,208.93,0.03]
[1756456540743,46.08521574,208.94,208.93,0.03]
[1756456541355,50.87127872,208.94,208.93,0.03]
[1756456543360,90.97127872,208.94,208.93,0.03]
[1756456544259,59.46521574,208.94,208.93,0.03]
[1756456544567,60.18521574,208.94,208.93,0.03]
[1756456545347,64.97127872,208.94,208.93,0.03]
[1756456546439,45.60606298,208.94,208.93,0.03]
[1756456546666,64.97127872,208.94,208.93,0.03]
[1756456547960,90.97127872,208.94,208.93,0.03]
[1756456549359,40.1,208.94,208.93,0.03]
[1756456549962,59.46521574,208.94,208.93,0.03]
[1756456550266,19.36521574,209.0,208.93,19.75521574]
[1756456550440,40.1,208.99,208.93,0.39]
[1756456550639,19.36521574,208.98,208.93,0.39]
[1756456550871,19.36521574,208.98,208.93,0.03]